[Event "Gibraltar Masters 18th"]
[Site "Gibraltar"]
[Date "2020.01.21"]
[Round "1.34"]
[White "Moussard, Jules"]
[Black "De Haan, Eric"]
[Result "1-0"]
[ECO "B48"]
[WhiteElo "2600"]
[BlackElo "2308"]
[PlyCount "51"]
[EventDate "2020.01.21"]
[EventType "swiss"]
[EventRounds "10"]
[EventCountry "GGB"]
[SourceTitle "BritBase"]
[Source "John Saunders"]
[SourceDate "2021.06.05"]
[SourceVersion "1"]
[SourceVersionDate "2021.06.05"]
[SourceQuality "1"]
[TimeControl "40/100:0"]
[WhiteClock "1:04:45"]
[BlackClock "0:20:42"]

1. e4 {[%emt 0:00:00]} c5 {[%emt 0:00:00]} 2. Nf3 {[%emt 0:00:00]} e6 {[%emt 0:
00:00]} 3. d4 {[%emt 0:00:00]} cxd4 {[%emt 0:00:00]} 4. Nxd4 {[%emt 0:00:00]}
Nc6 {[%emt 0:00:00]} 5. Nc3 {[%emt 0:00:00]} Qc7 {[%emt 0:00:00]} 6. Be3 {
[%emt 0:00:00]} a6 {[%emt 0:00:00]} 7. Qf3 {[%emt 0:00:00]} Bd6 {[%emt 0:00:00]
} 8. O-O-O {[%emt 0:00:00]} Be5 {[%emt 0:00:00]} 9. g3 {[%emt 0:00:00]} Nge7 {
[%emt 0:00:00]} 10. Qe2 {[%emt 0:00:00]} b5 {[%emt 0:00:00]} 11. f4 {[%emt 0:
00:00]} Bxd4 {[%emt 0:00:00]} 12. Bxd4 {[%emt 0:00:00]} Nxd4 {[%emt 0:00:00]}
13. Rxd4 {[%emt 0:00:00]} Rb8 {[%emt 0:00:00]} 14. Qd2 {[%emt 0:00:00]} b4 {
[%emt 0:00:00]} 15. Na4 {[%emt 0:00:00]} a5 {[%emt 0:00:00]} 16. Rc4 {[%emt 0:
00:00]} Qa7 {[%emt 0:00:00]} 17. Bg2 {[%emt 0:00:00]} d5 {[%emt 0:00:00]} 18.
exd5 {[%emt 0:00:00]} exd5 {[%emt 0:00:00]} 19. Qd4 {[%emt 0:00:00]} Qd7 {
[%emt 0:00:00]} 20. Nb6 {[%emt 0:00:00]} Rxb6 {[%emt 0:00:00]} 21. Qxb6 {
[%emt 0:00:00]} dxc4 {[%emt 0:00:00]} 22. Rd1 {[%emt 0:00:00]} Qxd1+ {[%emt 0:
00:00]} 23. Kxd1 {[%emt 0:00:00]} O-O {[%emt 0:00:00]} 24. Qxa5 {[%emt 0:00:00]
} Nf5 {[%emt 0:00:00]} 25. Kc1 {[%emt 0:00:00]} Ne3 {[%emt 0:00:00]} 26. Bc6 {
[%emt 0:00:00]} 1-0

[Event "Gibraltar Masters 18th"]
[Site "Gibraltar"]
[Date "2020.01.21"]
[Round "1.35"]
[White "Pourkashiyan, Atousa"]
[Black "Vaibhav, Suri"]
[Result "0-1"]
[ECO "B92"]
[WhiteElo "2305"]
[BlackElo "2593"]
[PlyCount "150"]
[EventDate "2020.01.21"]
[EventType "swiss"]
[EventRounds "10"]
[EventCountry "GGB"]
[SourceTitle "BritBase"]
[Source "John Saunders"]
[SourceDate "2021.06.05"]
[SourceVersion "1"]
[SourceVersionDate "2021.06.05"]
[SourceQuality "1"]
[TimeControl "40/100:0"]
[WhiteClock "0:04:09"]
[BlackClock "0:01:56"]

1. e4 {[%emt 0:00:00]} c5 {[%emt 0:00:00]} 2. Nf3 {[%emt 0:00:00]} d6 {[%emt 0:
00:00]} 3. d4 {[%emt 0:00:00]} cxd4 {[%emt 0:00:00]} 4. Nxd4 {[%emt 0:00:00]}
Nf6 {[%emt 0:00:00]} 5. Nc3 {[%emt 0:00:00]} a6 {[%emt 0:00:00]} 6. Be2 {
[%emt 0:00:00]} e5 {[%emt 0:00:00]} 7. Nb3 {[%emt 0:00:00]} Be7 {[%emt 0:00:00]
} 8. O-O {[%emt 0:00:00]} O-O {[%emt 0:00:00]} 9. Be3 {[%emt 0:00:00]} Be6 {
[%emt 0:00:00]} 10. Re1 {[%emt 0:00:00]} Nbd7 {[%emt 0:00:00]} 11. a4 {[%emt 0:
00:00]} Rc8 {[%emt 0:00:00]} 12. Bf3 {[%emt 0:00:00]} Nb6 {[%emt 0:00:00]} 13.
Nd2 {[%emt 0:00:00]} Nc4 {[%emt 0:00:00]} 14. Nxc4 {[%emt 0:00:00]} Rxc4 {
[%emt 0:00:00]} 15. a5 {[%emt 0:00:00]} Qc7 {[%emt 0:00:00]} 16. Qd3 {[%emt 0:
00:00]} Rc8 {[%emt 0:00:00]} 17. Bb6 {[%emt 0:00:00]} Qc6 {[%emt 0:00:00]} 18.
h3 {[%emt 0:00:00]} Rb4 {[%emt 0:00:00]} 19. Rab1 {[%emt 0:00:00]} Bd8 {
[%emt 0:00:00]} 20. Nd5 {[%emt 0:00:00]} Bxd5 {[%emt 0:00:00]} 21. exd5 {
[%emt 0:00:00]} Qd7 {[%emt 0:00:00]} 22. c3 {[%emt 0:00:00]} Rbc4 {[%emt 0:00:
00]} 23. Qe3 {[%emt 0:00:00]} Bxb6 {[%emt 0:00:00]} 24. Qxb6 {[%emt 0:00:00]}
R4c5 {[%emt 0:00:00]} 25. Qb4 {[%emt 0:00:00]} Qc7 {[%emt 0:00:00]} 26. Ra1 {
[%emt 0:00:00]} e4 {[%emt 0:00:00]} 27. Bg4 {[%emt 0:00:00]} Re8 {[%emt 0:00:
00]} 28. Rad1 {[%emt 0:00:00]} Re5 {[%emt 0:00:00]} 29. Be2 {[%emt 0:00:00]}
Rcxd5 {[%emt 0:00:00]} 30. c4 {[%emt 0:00:00]} Rc5 {[%emt 0:00:00]} 31. Qd2 {
[%emt 0:00:16]} Re6 {[%emt 0:00:00]} 32. b4 {[%emt 0:00:00]} Rce5 {[%emt 0:00:
00]} 33. Bf1 {[%emt 0:00:05]} g6 {[%emt 0:00:00]} 34. Qd4 {[%emt 0:00:13]} d5 {
[%emt 0:00:35]} 35. Rc1 {[%emt 0:00:27]} dxc4 {[%emt 0:00:30]} 36. Rxc4 {
[%emt 0:00:00]} Qe7 {[%emt 0:00:00]} 37. Rec1 {[%emt 0:00:05]} Rd6 {[%emt 0:00:
00]} 38. Qa7 {[%emt 0:00:00]} Rd7 {[%emt 0:00:00]} 39. Qb8+ {[%emt 0:00:00]}
Kg7 {[%emt 0:00:00]} 40. Rc7 {[%emt 0:00:00]} Qxb4 {[%emt 0:00:00]} 41. Rxb7 {
[%emt 0:00:00]} Qxa5 {[%emt 0:00:00]} 42. Rxd7 Nxd7 {[%emt 0:00:00]} 43. Qb2 {
[%emt 0:00:00]} Nf6 {[%emt 0:00:00]} 44. Bxa6 {[%emt 0:00:00]} h5 {[%emt 0:00:
00]} 45. Bc4 {[%emt 0:00:00]} Rc5 {[%emt 0:00:00]} 46. Bb3 {[%emt 0:00:00]} h4
{[%emt 0:00:00]} 47. Rxc5 {[%emt 0:00:00]} Qxc5 {[%emt 0:00:00]} 48. Ba2 {
[%emt 0:00:00]} Qa5 {[%emt 0:00:00]} 49. Bc4 {[%emt 0:00:00]} Qc5 {[%emt 0:00:
00]} 50. Ba2 {[%emt 0:00:00]} g5 {[%emt 0:00:00]} 51. Bb1 {[%emt 0:00:00]} Qa5
{[%emt 0:00:00]} 52. Kh2 {[%emt 0:00:00]} Qf5 {[%emt 0:00:00]} 53. Ba2 {
[%emt 0:00:00]} Kg6 {[%emt 0:00:00]} 54. Qb3 {[%emt 0:00:00]} Qf4+ {[%emt 0:00:
00]} 55. Kg1 {[%emt 0:00:00]} Qc1+ {[%emt 0:00:00]} 56. Kh2 {[%emt 0:00:00]}
Qc7+ {[%emt 0:00:00]} 57. Kg1 {[%emt 0:00:00]} g4 {[%emt 0:00:00]} 58. Qe3 {
[%emt 0:00:28]} g3 {[%emt 0:00:48]} 59. Bb1 {[%emt 0:00:02]} Qe5 {[%emt 0:00:
39]} 60. fxg3 {[%emt 0:00:26]} hxg3 {[%emt 0:00:00]} 61. Bd3 {[%emt 0:00:00]}
Kg7 {[%emt 0:00:00]} 62. Bf1 {[%emt 0:00:00]} Nd5 {[%emt 0:00:00]} 63. Qe2 {
[%emt 0:00:00]} Qf4 {[%emt 0:00:00]} 64. Qb2+ {[%emt 0:00:00]} Kg8 {[%emt 0:00:
00]} 65. Bc4 {[%emt 0:00:00]} Ne3 {[%emt 0:00:00]} 66. Ba6 {[%emt 0:00:00]} Nf5
{[%emt 0:00:00]} 67. Qc2 {[%emt 0:00:00]} e3 {[%emt 0:00:00]} 68. Qc8+ {
[%emt 0:00:00]} Kg7 {[%emt 0:00:00]} 69. Qc3+ {[%emt 0:00:00]} Nd4 {[%emt 0:00:
00]} 70. Bc4 {[%emt 0:00:00]} e2 {[%emt 0:00:11]} 71. Bxe2 {[%emt 0:00:00]}
Qc1+ {[%emt 0:00:00]} 72. Qxc1 {[%emt 0:00:00]} Nxe2+ {[%emt 0:00:00]} 73. Kf1
{[%emt 0:00:00]} Nxc1 {[%emt 0:00:00]} 74. Ke1 {[%emt 0:00:00]} f5 {[%emt 0:00:
00]} 75. Kd2 {[%emt 0:00:00]} f4 {[%emt 0:00:00]} 0-1

[Event "Gibraltar Masters 18th"]
[Site "Gibraltar"]
[Date "2020.01.21"]
[Round "1.36"]
[White "Kryakvin, Dmitry"]
[Black "Judkovsky, Yair"]
[Result "1-0"]
[ECO "A30"]
[WhiteElo "2592"]
[BlackElo "2305"]
[PlyCount "83"]
[EventDate "2020.01.21"]
[EventType "swiss"]
[EventRounds "10"]
[EventCountry "GGB"]
[SourceTitle "BritBase"]
[Source "John Saunders"]
[SourceDate "2021.06.05"]
[SourceVersion "1"]
[SourceVersionDate "2021.06.05"]
[SourceQuality "1"]
[TimeControl "40/100:0"]
[WhiteClock "1:22:01"]
[BlackClock "1:13:08"]

1. Nf3 {[%emt 0:00:00]} Nf6 {[%emt 0:00:00]} 2. c4 {[%emt 0:00:00]} e6 {
[%emt 0:00:00]} 3. g3 {[%emt 0:00:00]} b6 {[%emt 0:00:00]} 4. Bg2 {[%emt 0:00:
00]} Bb7 {[%emt 0:00:00]} 5. O-O {[%emt 0:00:00]} c5 {[%emt 0:00:00]} 6. Nc3 {
[%emt 0:00:00]} Be7 {[%emt 0:00:00]} 7. d4 {[%emt 0:00:00]} cxd4 {[%emt 0:00:
00]} 8. Qxd4 {[%emt 0:00:00]} O-O {[%emt 0:00:00]} 9. Bg5 {[%emt 0:00:00]} h6 {
[%emt 0:00:00]} 10. Bxf6 {[%emt 0:00:00]} Bxf6 {[%emt 0:00:00]} 11. Qd3 {
[%emt 0:00:00]} Na6 12. Rfd1 {[%emt 0:00:00]} Nc5 13. Qc2 {[%emt 0:00:00]} Qe7
14. Rac1 {[%emt 0:00:00]} Rfc8 15. Nd4 {[%emt 0:00:00]} Bxg2 16. Kxg2 {[%emt 0:
00:00]} a6 17. b4 {[%emt 0:00:00]} Nb7 18. Qb3 {[%emt 0:00:00]} Nd6 19. Na4 {
[%emt 0:00:00]} Bxd4 20. Rxd4 {[%emt 0:00:00]} b5 21. Nb6 {[%emt 0:00:00]} Nxc4
22. Nxa8 {[%emt 0:00:00]} Rxa8 23. Rcd1 {[%emt 0:00:00]} d6 24. a4 {[%emt 0:00:
00]} Qc7 25. Ra1 {[%emt 0:00:00]} Rc8 26. axb5 {[%emt 0:00:00]} axb5 27. Rdd1 {
[%emt 0:00:00]} Qb7+ 28. Kg1 {[%emt 0:00:00]} d5 29. Qa2 {[%emt 0:00:00]} Rd8
30. Qa7 {[%emt 0:00:00]} Qc8 31. Ra2 {[%emt 0:00:00]} Qc6 32. Ra6 {[%emt 0:00:
00]} Qe8 33. Rda1 {[%emt 0:00:00]} Kh7 34. Qd4 {[%emt 0:00:00]} e5 35. Qg4 {
[%emt 0:00:00]} g6 36. Ra7 {[%emt 0:00:00]} Kg7 37. R1a6 {[%emt 0:00:00]} Nd6
38. h4 {[%emt 0:00:00]} d4 39. Rc7 {[%emt 0:00:00]} e4 40. Qf4 {[%emt 0:00:00]}
Qe6 41. Rcc6 {[%emt 0:00:00]} d3 42. exd3 {[%emt 0:00:00]} 1-0

[Event "Gibraltar Masters 18th"]
[Site "Gibraltar"]
[Date "2020.01.21"]
[Round "1.37"]
[White "Belenkaya, Dina"]
[Black "Santos Ruiz, Miguel"]
[Result "1/2-1/2"]
[ECO "B31"]
[WhiteElo "2304"]
[BlackElo "2591"]
[PlyCount "88"]
[EventDate "2020.01.21"]
[EventType "swiss"]
[EventRounds "10"]
[EventCountry "GGB"]
[SourceTitle "BritBase"]
[Source "John Saunders"]
[SourceDate "2021.06.05"]
[SourceVersion "1"]
[SourceVersionDate "2021.06.05"]
[SourceQuality "1"]
[TimeControl "40/100:0"]
[WhiteClock "1:17:42"]
[BlackClock "1:18:02"]

1. e4 {[%emt 0:00:00]} c5 {[%emt 0:00:00]} 2. Nf3 {[%emt 0:00:00]} Nc6 {
[%emt 0:00:00]} 3. Bb5 {[%emt 0:00:00]} g6 {[%emt 0:00:00]} 4. O-O {[%emt 0:00:
00]} Bg7 {[%emt 0:00:00]} 5. Re1 {[%emt 0:00:00]} e5 {[%emt 0:00:00]} 6. Nc3 {
[%emt 0:00:00]} Nge7 {[%emt 0:00:00]} 7. Bc4 {[%emt 0:00:00]} O-O {[%emt 0:00:
00]} 8. d3 {[%emt 0:00:00]} h6 {[%emt 0:00:00]} 9. a3 {[%emt 0:00:00]} d6 {
[%emt 0:00:00]} 10. h3 {[%emt 0:00:00]} a6 {[%emt 0:00:00]} 11. Nd5 {[%emt 0:
00:00]} b5 {[%emt 0:00:00]} 12. Ba2 {[%emt 0:00:00]} Rb8 13. c3 {[%emt 0:00:00]
} Nxd5 14. Bxd5 {[%emt 0:00:00]} Ne7 15. Ba2 {[%emt 0:00:00]} Bb7 16. b4 {
[%emt 0:00:00]} Kh7 17. Bb2 {[%emt 0:00:00]} cxb4 18. axb4 {[%emt 0:00:00]} d5
19. Nd2 {[%emt 0:00:00]} d4 20. cxd4 {[%emt 0:00:00]} exd4 21. Nb3 {[%emt 0:00:
00]} Qd6 22. Nc5 {[%emt 0:00:00]} Bc8 23. Qe2 {[%emt 0:00:00]} Be5 24. Bc1 {
[%emt 0:00:00]} a5 25. f4 {[%emt 0:00:00]} Bg7 26. e5 {[%emt 0:00:00]} Qb6 27.
Bb2 {[%emt 0:00:00]} Nc6 28. bxa5 {[%emt 0:00:00]} Qxa5 29. Rec1 {[%emt 0:00:
00]} Qb6 30. Bd5 {[%emt 0:00:00]} Ne7 31. Be4 {[%emt 0:00:00]} Nc6 32. Bd5 {
[%emt 0:00:00]} Ne7 33. Be4 {[%emt 0:00:00]} Rd8 34. Qf2 {[%emt 0:00:00]} Nd5
35. Bxd4 {[%emt 0:00:00]} Nxf4 36. Be3 {[%emt 0:00:00]} Nd5 37. Bxd5 {[%emt 0:
00:00]} Rxd5 38. Nd7 {[%emt 0:00:00]} Qb7 39. Nxb8 {[%emt 0:00:00]} Qxb8 40. d4
{[%emt 0:00:00]} Be6 41. Qc2 {[%emt 0:00:00]} b4 42. Ra4 {[%emt 0:00:00]} b3
43. Qb2 {[%emt 0:00:00]} Rb5 44. Bd2 {[%emt 0:00:00]} Qb7 1/2-1/2

[Event "Gibraltar Masters 18th"]
[Site "Gibraltar"]
[Date "2020.01.21"]
[Round "1.38"]
[White "Tregubov, Pavel V"]
[Black "Ranaldi, Lucas"]
[Result "1/2-1/2"]
[ECO "B11"]
[WhiteElo "2588"]
[BlackElo "2296"]
[PlyCount "62"]
[EventDate "2020.01.21"]
[EventType "swiss"]
[EventRounds "10"]
[EventCountry "GGB"]
[SourceTitle "BritBase"]
[Source "John Saunders"]
[SourceDate "2021.06.05"]
[SourceVersion "1"]
[SourceVersionDate "2021.06.05"]
[SourceQuality "1"]
[TimeControl "40/100:0"]
[WhiteClock "0:01:02"]
[BlackClock "0:05:24"]

1. e4 {[%emt 0:00:00]} c6 {[%emt 0:00:00]} 2. Nc3 {[%emt 0:00:00]} d5 {[%emt 0:
00:00]} 3. Nf3 {[%emt 0:00:00]} Bg4 {[%emt 0:00:00]} 4. h3 {[%emt 0:00:00]}
Bxf3 {[%emt 0:00:00]} 5. Qxf3 {[%emt 0:00:00]} Nf6 {[%emt 0:00:00]} 6. g3 {
[%emt 0:00:00]} e6 {[%emt 0:00:00]} 7. Bg2 {[%emt 0:00:00]} Bc5 {[%emt 0:00:00]
} 8. O-O {[%emt 0:00:00]} Nbd7 {[%emt 0:00:00]} 9. d3 {[%emt 0:00:00]} O-O {
[%emt 0:00:00]} 10. Qe2 {[%emt 0:00:00]} Qc7 {[%emt 0:00:00]} 11. Bf4 {[%emt 0:
00:00]} e5 {[%emt 0:00:00]} 12. Bd2 {[%emt 0:00:00]} dxe4 {[%emt 0:00:00]} 13.
Nxe4 {[%emt 0:00:00]} Nxe4 {[%emt 0:00:00]} 14. Qxe4 {[%emt 0:00:00]} Kh8 {
[%emt 0:00:00]} 15. b4 {[%emt 0:00:00]} Bd6 {[%emt 0:00:00]} 16. f4 {[%emt 0:
00:00]} exf4 {[%emt 0:00:00]} 17. Bxf4 {[%emt 0:00:00]} Rae8 {[%emt 0:00:00]}
18. Qd4 {[%emt 0:00:00]} Bxf4 {[%emt 0:00:00]} 19. Rxf4 {[%emt 0:00:00]} a6 {
[%emt 0:00:00]} 20. Raf1 {[%emt 0:00:00]} Ne5 {[%emt 0:00:00]} 21. Kh2 {
[%emt 0:00:00]} Re7 {[%emt 0:00:00]} 22. a4 {[%emt 0:00:00]} a5 {[%emt 0:00:00]
} 23. bxa5 {[%emt 0:00:00]} Qxa5 {[%emt 0:00:00]} 24. Qb4 {[%emt 0:00:00]} Qc7
{[%emt 0:00:00]} 25. a5 {[%emt 0:00:00]} Ra8 {[%emt 0:00:00]} 26. Ra1 {[%emt 0:
00:00]} Ng6 {[%emt 0:00:00]} 27. Re4 {[%emt 0:00:00]} Rxe4 {[%emt 0:00:00]} 28.
Bxe4 {[%emt 0:00:00]} h5 {[%emt 0:00:00]} 29. Bxg6 {[%emt 0:00:00]} fxg6 {
[%emt 0:00:00]} 30. Qf4 {[%emt 0:00:00]} Qe7 {[%emt 0:00:00]} 31. Kg2 {[%emt 0:
00:38]} Rf8 {[%emt 0:00:00]} 1/2-1/2

[Event "Gibraltar Masters 18th"]
[Site "Gibraltar"]
[Date "2020.01.21"]
[Round "1.39"]
[White "Antova, Gabriela"]
[Black "Santos Latasa, Jaime"]
[Result "1/2-1/2"]
[ECO "E60"]
[WhiteElo "2295"]
[BlackElo "2586"]
[PlyCount "78"]
[EventDate "2020.01.21"]
[EventType "swiss"]
[EventRounds "10"]
[EventCountry "GGB"]
[SourceTitle "BritBase"]
[Source "John Saunders"]
[SourceDate "2021.06.05"]
[SourceVersion "1"]
[SourceVersionDate "2021.06.05"]
[SourceQuality "1"]
[TimeControl "40/100:0"]
[WhiteClock "0:00:39"]
[BlackClock "0:46:01"]

1. d4 {[%emt 0:00:00]} Nf6 {[%emt 0:00:00]} 2. c4 {[%emt 0:00:00]} g6 {[%emt 0:
00:00]} 3. Nf3 {[%emt 0:00:00]} Bg7 {[%emt 0:00:00]} 4. g3 {[%emt 0:00:00]} O-O
{[%emt 0:00:00]} 5. Bg2 {[%emt 0:00:00]} d6 {[%emt 0:00:00]} 6. O-O {[%emt 0:
00:00]} Ne4 {[%emt 0:00:00]} 7. Qc2 {[%emt 0:00:00]} f5 {[%emt 0:00:00]} 8.
Nbd2 {[%emt 0:00:00]} Nxd2 {[%emt 0:00:00]} 9. Bxd2 {[%emt 0:00:00]} e5 {
[%emt 0:00:00]} 10. dxe5 {[%emt 0:00:00]} dxe5 {[%emt 0:00:00]} 11. Rad1 {
[%emt 0:00:00]} Nc6 {[%emt 0:00:00]} 12. e4 {[%emt 0:00:00]} Qf6 {[%emt 0:00:
00]} 13. Bc3 {[%emt 0:00:00]} Be6 {[%emt 0:00:00]} 14. exf5 {[%emt 0:00:00]}
Bxf5 {[%emt 0:00:00]} 15. Qb3 {[%emt 0:00:00]} Bg4 {[%emt 0:00:00]} 16. Rd3 {
[%emt 0:00:00]} Qf5 {[%emt 0:00:00]} 17. c5+ {[%emt 0:00:00]} Kh8 {[%emt 0:00:
00]} 18. Qc4 {[%emt 0:00:00]} Qh5 {[%emt 0:00:00]} 19. h3 {[%emt 0:00:00]} Bxh3
{[%emt 0:00:00]} 20. Bxh3 {[%emt 0:00:00]} Qxh3 {[%emt 0:00:00]} 21. Ng5 {
[%emt 0:00:00]} Qf5 {[%emt 0:00:00]} 22. Ne6 {[%emt 0:00:00]} Qf7 {[%emt 0:00:
00]} 23. Qb3 {[%emt 0:00:00]} Rfe8 {[%emt 0:00:00]} 24. Nxg7 {[%emt 0:00:00]}
Qxb3 {[%emt 0:00:00]} 25. axb3 {[%emt 0:00:00]} Kxg7 {[%emt 0:00:00]} 26. Rd7+
{[%emt 0:00:00]} Kf6 {[%emt 0:00:00]} 27. Rxh7 {[%emt 0:00:00]} Re7 {[%emt 0:
00:00]} 28. Rh4 {[%emt 0:00:00]} Ke6 {[%emt 0:00:00]} 29. b4 {[%emt 0:00:00]}
a6 {[%emt 0:00:00]} 30. f4 {[%emt 0:00:00]} Rf8 {[%emt 0:00:00]} 31. Rg4 {
[%emt 0:00:00]} exf4 {[%emt 0:00:00]} 32. Rxg6+ {[%emt 0:00:00]} Kd5 {[%emt 0:
00:00]} 33. Rxf4 {[%emt 0:00:00]} Rxf4 {[%emt 0:00:00]} 34. gxf4 {[%emt 0:00:
00]} Rf7 {[%emt 0:00:00]} 35. Kg2 {[%emt 0:00:38]} Rxf4 {[%emt 0:00:00]} 36.
Rg7 {[%emt 0:00:00]} Nxb4 {[%emt 0:00:00]} 37. Rxc7 {[%emt 0:00:00]} Na2 {
[%emt 0:00:00]} 38. Be1 {[%emt 0:00:13]} Re4 {[%emt 0:00:00]} 39. Kf1 {[%emt 0:
00:10]} Nb4 {[%emt 0:02:30]} 1/2-1/2

[Event "Gibraltar Masters 18th"]
[Site "Gibraltar"]
[Date "2020.01.21"]
[Round "1.40"]
[White "Kadric, Denis"]
[Black "Garrido Outon, Alex"]
[Result "1-0"]
[ECO "C54"]
[WhiteElo "2585"]
[BlackElo "2287"]
[PlyCount "55"]
[EventDate "2020.01.21"]
[EventType "swiss"]
[EventRounds "10"]
[EventCountry "GGB"]
[SourceTitle "BritBase"]
[Source "John Saunders"]
[SourceDate "2021.06.05"]
[SourceVersion "1"]
[SourceVersionDate "2021.06.05"]
[SourceQuality "1"]
[TimeControl "40/100:0"]
[WhiteClock "0:26:53"]
[BlackClock "0:18:26"]

1. e4 {[%emt 0:00:00]} e5 {[%emt 0:00:00]} 2. Nf3 {[%emt 0:00:00]} Nc6 {
[%emt 0:00:00]} 3. Bc4 {[%emt 0:00:00]} Bc5 {[%emt 0:00:00]} 4. c3 {[%emt 0:00:
00]} Nf6 {[%emt 0:00:00]} 5. d3 {[%emt 0:00:00]} d6 {[%emt 0:00:00]} 6. O-O {
[%emt 0:00:00]} a5 {[%emt 0:00:00]} 7. Nbd2 {[%emt 0:00:00]} O-O {[%emt 0:00:
00]} 8. h3 {[%emt 0:00:00]} h6 {[%emt 0:00:00]} 9. Bb5 {[%emt 0:00:00]} Ba7 {
[%emt 0:00:00]} 10. Re1 {[%emt 0:00:00]} Ne7 {[%emt 0:00:00]} 11. Nf1 {[%emt 0:
00:00]} c6 {[%emt 0:00:00]} 12. Ba4 {[%emt 0:00:00]} Ng6 {[%emt 0:00:00]} 13.
Ng3 {[%emt 0:00:00]} Re8 {[%emt 0:00:00]} 14. d4 {[%emt 0:00:00]} b5 {[%emt 0:
00:00]} 15. Bc2 {[%emt 0:00:00]} Qc7 {[%emt 0:00:00]} 16. Be3 {[%emt 0:00:00]}
c5 {[%emt 0:00:00]} 17. Qd2 {[%emt 0:00:00]} Kh7 {[%emt 0:00:00]} 18. Rad1 {
[%emt 0:00:00]} Bd7 {[%emt 0:00:00]} 19. Nf5 {[%emt 0:00:00]} Bxf5 {[%emt 0:00:
00]} 20. exf5 {[%emt 0:00:00]} Ne7 {[%emt 0:00:00]} 21. dxe5 {[%emt 0:00:00]}
dxe5 {[%emt 0:00:00]} 22. Qc1 {[%emt 0:00:00]} Nc6 {[%emt 0:00:00]} 23. Nd2 {
[%emt 0:00:00]} e4 {[%emt 0:00:00]} 24. Nxe4 {[%emt 0:00:00]} Nxe4 {[%emt 0:00:
00]} 25. Bf4 {[%emt 0:00:00]} Qe7 {[%emt 0:00:00]} 26. Rxe4 {[%emt 0:00:00]}
Qh4 {[%emt 0:00:00]} 27. Bg3 {[%emt 0:00:00]} Qh5 {[%emt 0:00:00]} 28. Rh4 {
[%emt 0:00:00]} 1-0

[Event "Gibraltar Masters 18th"]
[Site "Gibraltar"]
[Date "2020.01.21"]
[Round "1.41"]
[White "Povah, Nigel E"]
[Black "Xu, Xiangyu"]
[Result "0-1"]
[ECO "A45"]
[WhiteElo "2284"]
[BlackElo "2580"]
[PlyCount "102"]
[EventDate "2020.01.21"]
[EventType "swiss"]
[EventRounds "10"]
[EventCountry "GGB"]
[SourceTitle "BritBase"]
[Source "John Saunders"]
[SourceDate "2021.06.05"]
[SourceVersion "1"]
[SourceVersionDate "2021.06.05"]
[SourceQuality "1"]
[TimeControl "40/100:0"]
[WhiteClock "0:17:02"]
[BlackClock "0:56:25"]

1. d4 {[%emt 0:00:00]} Nf6 {[%emt 0:00:00]} 2. Bg5 {[%emt 0:00:00]} e6 {
[%emt 0:00:00]} 3. e4 {[%emt 0:00:00]} h6 {[%emt 0:00:00]} 4. Bxf6 {[%emt 0:00:
00]} Qxf6 {[%emt 0:00:00]} 5. c3 {[%emt 0:00:00]} d6 {[%emt 0:00:00]} 6. Bd3 {
[%emt 0:00:00]} Nd7 {[%emt 0:00:00]} 7. Ne2 {[%emt 0:00:00]} b6 {[%emt 0:00:00]
} 8. O-O {[%emt 0:00:00]} Bb7 {[%emt 0:00:00]} 9. a4 {[%emt 0:00:00]} a5 {
[%emt 0:00:00]} 10. Na3 {[%emt 0:00:00]} g6 {[%emt 0:00:00]} 11. f4 {[%emt 0:
00:00]} Bg7 {[%emt 0:00:00]} 12. Nb5 {[%emt 0:00:00]} Qd8 {[%emt 0:00:00]} 13.
Qd2 {[%emt 0:00:00]} O-O {[%emt 0:00:00]} 14. f5 {[%emt 0:00:00]} exf5 {
[%emt 0:00:00]} 15. exf5 {[%emt 0:00:00]} g5 {[%emt 0:00:00]} 16. Ng3 {[%emt 0:
00:00]} Nf6 {[%emt 0:00:00]} 17. Rae1 {[%emt 0:00:00]} Qd7 {[%emt 0:00:00]} 18.
Re2 {[%emt 0:00:00]} Rfe8 {[%emt 0:00:00]} 19. Rfe1 {[%emt 0:00:00]} Rxe2 {
[%emt 0:00:00]} 20. Rxe2 {[%emt 0:00:00]} Bf8 {[%emt 0:00:00]} 21. Qe1 {
[%emt 0:00:00]} d5 {[%emt 0:00:00]} 22. Qf2 {[%emt 0:00:00]} Re8 {[%emt 0:00:
00]} 23. Rxe8 {[%emt 0:00:00]} Qxe8 {[%emt 0:00:00]} 24. Nxc7 {[%emt 0:00:00]}
Qxa4 {[%emt 0:00:00]} 25. Qe1 {[%emt 0:00:00]} Qd7 {[%emt 0:00:00]} 26. Nb5 {
[%emt 0:00:00]} Bc6 {[%emt 0:00:00]} 27. Qe2 {[%emt 0:00:00]} g4 {[%emt 0:00:
00]} 28. Na3 {[%emt 0:00:00]} Bd6 {[%emt 0:00:00]} 29. Qe3 {[%emt 0:00:00]} Kg7
{[%emt 0:00:00]} 30. Nc2 {[%emt 0:00:00]} Qc7 {[%emt 0:00:00]} 31. Nf1 {
[%emt 0:00:00]} Bf4 {[%emt 0:00:00]} 32. Qe2 {[%emt 0:00:00]} h5 {[%emt 0:00:
00]} 33. g3 {[%emt 0:00:00]} Bg5 {[%emt 0:00:00]} 34. Nce3 {[%emt 0:00:00]} Qd7
{[%emt 0:00:00]} 35. Ng2 {[%emt 0:00:05]} Qe8 {[%emt 0:00:00]} 36. Qe5 {
[%emt 0:00:08]} Qxe5 {[%emt 0:00:00]} 37. dxe5 {[%emt 0:00:00]} Nd7 {[%emt 0:
00:00]} 38. e6 {[%emt 0:00:00]} Nc5 {[%emt 0:00:00]} 39. Be2 {[%emt 0:00:02]}
fxe6 {[%emt 0:00:00]} 40. fxe6 {[%emt 0:00:00]} Na4 {[%emt 0:00:00]} 41. Nf4 {
[%emt 0:00:00]} Nxb2 {[%emt 0:00:00]} 42. Ne3 {[%emt 0:00:00]} Bxf4 {[%emt 0:
00:00]} 43. gxf4 {[%emt 0:00:00]} Kf6 {[%emt 0:00:00]} 44. h3 {[%emt 0:00:00]}
gxh3 {[%emt 0:00:00]} 45. Bxh5 {[%emt 0:00:00]} a4 {[%emt 0:00:00]} 46. Nc2 {
[%emt 0:00:00]} Kxe6 {[%emt 0:00:00]} 47. Kh2 {[%emt 0:00:00]} Nd3 {[%emt 0:00:
00]} 48. Kg3 {[%emt 0:00:00]} h2 {[%emt 0:00:00]} 49. Bf3 {[%emt 0:00:00]} Kd6
{[%emt 0:00:00]} 50. Kxh2 {[%emt 0:00:00]} Nxf4 {[%emt 0:00:00]} 51. Kg3 {
[%emt 0:00:00]} Nd3 {[%emt 0:03:38]} 0-1